Cogmind - Beta 16.1 @@@ ROGUE MODE // 2026.04.01 @ 15:12:28 Player: Lunace Result: Destroyed by AP-D4L(R) with Subdweller Laser Performance ------------- Evolutions (0) 0 Regions Visited (2) 400 Robots Destroyed (22) 110 Value Destroyed (642) 642 Prototype IDs (13) 260 Alien Tech Used (0) 0 Bonus (0) 0 TOTAL SCORE: 1412 Bonus ------- None Cogmind --------- Core Integrity 0/250 Matter 216/300 Energy 196/200 System Corruption 0% Temperature Cool (6) Movement Core (600) Ox11 Location -10/Subcaves Parts ------- > --- POWER (1+3) ------ Subdweller Power Source > --- PROPULSION (2) --- Subdweller Monowheel > --- UTILITY (2) ------ Large Storage Unit Power Bank > --- WEAPON (2) ------- Subdweller Laser Subdweller Machine Gun > --- INVENTORY (15) --- SUBCON Basin (Full) Peak State ------------ > --- POWER ------------ Subdweller Power Source > --- PROPULSION ------- Light Treads Subdweller Monowheel > --- UTILITY ---------- Large Storage Unit Power Bank > --- WEAPON ----------- Subdweller Beam Cannon Subdweller Beam Cannon > --- INVENTORY -------- SUBCON Basin [Rating: 37] Favorites ----------- Power Subdweller Power Source Engine Subdweller Power Source Propulsion Light Treads Treads Light Treads Wheel Subdweller Monowheel Utility Large Storage Unit Device Power Bank Storage Large Storage Unit Weapon Medium Laser Energy Gun Medium Laser Energy Cannon Subdweller Beam Cannon Ballistic Gun Subdweller Machine Gun Ballistic Cannon Battle Cannon Build | -11 -10 -10 ------- Run | Yrd Mat Sub Slots Evolved . | . . . Power . | . . . Propulsion . | . . . Utility . | . . . Weapon . | . . . Parts Attached 25 | 8 1 16 Power 3 | 1 . 2 Engine 3 | 1 . 2 Core . | . . . Reactor . | . . . Propulsion 6 | 2 . 4 Treads 3 | 2 . 1 Leg . | . . . Wheel 3 | . . 3 Hover . | . . . Flight . | . . . Utility 4 | 2 1 1 Device 2 | 1 . 1 Storage 2 | 1 1 . Processor . | . . . Hackware . | . . . Protection . | . . . Artifact . | . . . Weapon 12 | 3 . 9 Energy Gun 3 | 2 . 1 Energy Cannon 2 | . . 2 Ballistic Gun 6 | 1 . 5 Ballistic Cannon 1 | . . 1 Launcher . | . . . Special Weapon . | . . . Impact Weapon . | . . . Slashing Weapon . | . . . Piercing Weapon . | . . . Special Melee Weapon . | . . . Unidentified Prototypes . | . . . Parts Lost 6 | . . 6 Power 1 | . . 1 Propulsion 3 | . . 3 Utility . | . . . Weapon 2 | . . 2 Highest Loss Streak 2 | . . 2 To Critical Strikes 1 | . . 1 Average Backups 1 | . 4 . Power . | . 1 . Propulsion . | . . . Utility . | . 2 . Weapon . | . 1 . Tool/Special . | . . . Unused Backups 5 | . . 5 Power 1 | . . 1 Propulsion . | . . . Utility 2 | . . 2 Weapon 2 | . . 2 Tool/Special . | . . . Average Slot Usage (%) 76 | . 100 72 Engine 7 | . 14 6 Treads 13 | . 28 11 Wheel 8 | . . 9 Device 11 | . 14 11 Storage 11 | . 14 11 Energy Gun 11 | . 28 9 Energy Cannon 3 | . . 4 Ballistic Gun 5 | . . 5 Ballistic Cannon 1 | . . 1 Peak Build Rating 37 | 7 7 37 Average Rating 25 | 5 7 29 On Entrance 4 | . 7 7 Avg Prop Armor Cover (%) 12 | . . 12 Naked Turns . | . . . Heaviest Build 44 | 15 30 44 Greatest Support 40 | 40 40 40 Greatest Overweight (x) 2 | . . 2 Average Overweight (x) . | . . . Largest Inventory Capacity 15 | 8 15 15 Average Capacity 14 | 6 13 15 Most Carried 15 | 2 6 15 Average Carried 12 | . 4 13 Final Capacity 15 | 8 15 15 Final Carried 15 | 2 6 15 Class Distribution -------------------- 82% | Mutant 17% | Scavenger-Mutant Dominant Class ---------------- Mutant | -10/Materials Mutant | -10/Subcaves Resources | -11 -10 -10 ----------- Run | Yrd Mat Sub Matter Collected 517 | 266 24 227 Remotely . | . . . Salvage Created 792 | 84 87 621 Parts 44 | 4 4 36 Haulers Intercepted 1 | . 1 . Recyclers Shooed . | . . . Parts Field Recycled . | . . . Retrieved Matter . | . . . Parts Self-Destructed 12 | . . 12 Prevented . | . . . Parts Restored . | . . . Kills | -11 -10 -10 ------- Run | Yrd Mat Sub Combat Hostiles Destroyed 17 | . . 17 Guns 10 | . . 10 Cannons 6 | . . 6 Classes Destroyed 8 | 2 3 3 Tunneler 1 | 1 . . Hauler 1 | . 1 . Recycler 1 | 1 . . Operator 1 | . 1 . Watcher 1 | . 1 . Swarmer 3 | . . 3 Sentry 1 | . . 1 Subdweller 13 | . . 13 Best Kill Streak 3 | 2 1 3 Combat Bots Only 3 | . . 3 Max Kills in Single Turn 1 | 1 1 1 Gunslinging . | . . . Exploded . | . . . Melee . | . . . Uniques/NPCs Destroyed . | . . . Combat | -11 -10 -10 -------- Run | Yrd Mat Sub Hostile Shots Fired 95 | . . 95 Missed 24 | . . 24 Hits 71 | . . 71 Projectile 71 | . . 71 Critical Strikes 4 | . . 4 Damage Taken 1445 | . . 1445 Core 261 | . . 261 Absorbed by Shields . | . . . Core Remaining (%) 100 | 100 . . Volleys Fired 91 | 4 6 81 Largest 2 | 2 2 2 Hottest 160 | 100 100 160 Shots Fired 160 | 8 12 140 Gun 119 | 8 12 99 Cannon 41 | . . 41 Launcher . | . . . Special . | . . . Kinetic 52 | . . 52 Thermal 108 | 8 12 88 Explosive . | . . . Electromagnetic . | . . . Robot Hit Streak 21 | 7 11 21 Robot Miss Streak 3 | . 3 3 Penetration Max . | . . . Secondary Targets . | . . . Shots Hit Robots 110 | 7 7 96 Core Hits 34 | 3 5 26 Critical Kills 1 | . . 1 Critical Parts Destroyed . | . . . Critical Strikes 8 | 1 1 6 Burn 7 | 1 1 5 Meltdown 1 | . . 1 Melee Attacks . | . . . Impact . | . . . Slashing . | . . . Piercing . | . . . Sneak Attacks . | . . . Combat Hostiles . | . . . Follow-up Attacks . | . . . Damage Inflicted 1887 | 86 88 1713 Guns 1314 | 86 88 1140 Cannons 573 | . . 573 Explosions . | . . . Melee . | . . . Ramming . | . . . Kinetic 718 | . . 718 Thermal 1169 | 86 88 995 Explosive . | . . . Electromagnetic . | . . . Impact . | . . . Slashing . | . . . Piercing . | . . . Highest Corruption . | . . . Average Corruption . | . . . Corruption Purged . | . . . Corruption Blocked . | . . . Overload Shots . | . . . Overflow Damage 10 | . . 10 Projectiles 10 | . . 10 Explosions . | . . . Melee . | . . . Knockbacks 1 | . . 1 Impact . | . . . Kinetic 1 | . . 1 Secondary . | . . . Self-Inflicted Damage . | . . . Shots . | . . . Rammed . | . . . Targets Rammed . | . . . Kicked . | . . . Crushed . | . . . Highest Temperature 117 | 117 100 78 Average Temperature 34 | 49 40 21 Received Heat Transfer 240 | . . 240 Siege Activations . | . . . Martial Activations . | . . . Shielding Activations . | . . . Robots Disrupted . | . . . Combat Hostiles . | . . . Robots Corrupted . | . . . Combat Hostiles . | . . . Parts Fried . | . . . Impact Corruptions . | . . . Robots Melted 1 | . . 1 Combat Hostiles 1 | . . 1 Parts Melted 6 | 2 1 3 Heat Transferred 3196 | 333 333 2530 Parts Sabotaged . | . . . Parts Stolen . | . . . Parts Stripped . | . . . Power Chain Reactions . | . . . Alert | -11 -10 -10 ------- Run | Yrd Mat Sub Maximum Alert Level . | . . . Low Security (%) 100 | 100 100 . Level 1 . | . . . Level 2 . | . . . Level 3 . | . . . Level 4 . | . . . Level 5 . | . . . High Security . | . . . Max Security . | . . . Peak Influence 7 | 5 7 . Initial . | . . . Average 1 | 1 1 . Influence Increases 119 | 10 19 90 Destroy 0b10 Robot/C 80 | . . 80 Destroy 0b10 Robot/NC 25 | 10 15 . Destroy Leader 14 | . 4 10 Influence Decreases 119 | 10 19 90 Time Decay 99 | 10 19 70 Lost Part 20 | . . 20 Squads Dispatched . | . . . Investigation . | . . . Extermination . | . . . Reinforcement . | . . . Assault . | . . . Garrison . | . . . Intercept . | . . . Searches Triggered . | . . . Construction Impeded . | . . . Haulers Reinforced . | . . . Active Scanning Responses . | . . . Cargo Convoy Interrupts . | . . . Stealth | -11 -10 -10 --------- Run | Yrd Mat Sub Distress Signals . | . . . Communications Jammed . | . . . Distress Signals . | . . . Times Spotted 21 | . 2 19 Peak Tracking Total 3 | . 1 3 Tactical Retreats . | . . . Traps | -11 -10 -10 ------- Run | Yrd Mat Sub Traps Triggered 3 | . . 3 Indirectly . | . . . Trap Hack Attempts . | . . . Triggered . | . . . Disarmed . | . . . Reprogrammed . | . . . Reused . | . . . Traps Extracted . | . . . Installed . | . . . Triggered . | . . . Machines | -11 -10 -10 ---------- Run | Yrd Mat Sub Machines Disabled 1 | . . 1 Max in Single Turn 1 | . . 1 Machines Repaired . | . . . Machines Dismantled . | . . . Machines Sabotaged . | . . . Overloaded Fab Kills . | . . . Hacking | -11 -10 -10 --------- Run | Yrd Mat Sub Machines Accessed 4 | . 1 3 Terminals 1 | . 1 . Fabricators . | . . . Repair Stations . | . . . Recycling Units . | . . . Scanalyzers . | . . . Garrison Access . | . . . Total Hacks 6 | . 3 3 Successful 4 | . 1 3 Failed 2 | . 2 . Catastrophic . | . . . Database Lockouts . | . . . Manual . | . . . Terminals 3 | . 3 . Fabricators . | . . . Repair Stations . | . . . Recycling Units . | . . . Scanalyzers . | . . . Garrison Access . | . . . Terminal Hacks 4 | . 1 3 Open Door 1 | . . 1 Hauler Manifests 1 | . 1 . Proto ID Catalog 1 | . . 1 Release Object 1 | . . 1 Fabricator Hacks . | . . . Repair Station Hacks . | . . . Recycling Unit Hacks . | . . . Scanalyzer . | . . . Garrison Access Hacks . | . . . Unauthorized Hacks . | . . . Terminals . | . . . Fabricators . | . . . Repair Stations . | . . . Recycling Units . | . . . Scanalyzers . | . . . Garrison Access . | . . . Data Cores Recovered 1 | . 1 . Used . | . . . Hacking Detections 1 | . 1 . Full Trace Events . | . . . Feedback Events . | . . . Feedback Blocked . | . . . Robot Schematics Acquired . | . . . Robots Built . | . . . Authchips . | . . . Time . | . . . Total Robot Build Rating . | . . . Part Schematics Acquired . | . . . Parts Built . | . . . Authchips . | . . . Time . | . . . Total Part Build Rating . | . . . Part Studies Acquired . | . . . Parts Repaired . | . . . Time . | . . . Parts Recycled . | . . . Recycled Matter . | . . . Retrieved Matter . | . . . Retrieved Components . | . . . Parts Scanalyzed . | . . . Part Schematics Acquired . | . . . Parts Damaged . | . . . Bothacking | -11 -10 -10 ------------ Run | Yrd Mat Sub Used RIF Installer . | . . . Robots Hacked . | . . . Non-combat . | . . . Combat . | . . . Robot Hacks Applied . | . . . Relay Couplers Released . | . . . Fabnet Peak Effective % . | . . . Robots Rewired . | . . . Allies Hacked . | . . . Hacks Repelled . | . . . Allies | -11 -10 -10 -------- Run | Yrd Mat Sub Total Allies . | . . . Largest Group . | . . . Highest-Rated Group . | . . . Highest-Rated Ally . | . . . Total Orders . | . . . Ally Attacks . | . . . Total Damage . | . . . Kills . | . . . Allies Corrupted . | . . . Allies Melted . | . . . Intel | -11 -10 -10 ------- Run | Yrd Mat Sub Active Infowar (turns) 805 | 15 234 556 Seismic 805 | 15 234 556 Robot Analysis Total . | . . . Derelict Logs Recovered 1 | . . 1 Drone Launches . | . . . Drone Recoveries . | . . . Exploration | -11 -10 -10 ------------- Run | Yrd Mat Sub Turns Passed 1882 | 84 234 1564 Spaces Moved 1161 | 42 133 986 Core 8 | 8 . . Treads 330 | 34 133 163 Legs . | . . . Wheels 823 | . . 823 Hover . | . . . Flight . | . . . Fastest Speed 50 | 50 160 120 Average Speed 132 | 139 160 128 Slowest Speed 240 | 160 160 240 Overloaded Moves . | . . . Propulsion Burnouts . | . . . Robots Hopped . | . . . Potential Cave-ins . | . . . Cave-ins Triggered . | . . . Exploration Rate (%) 31 | 4 21 70 Regions Visited 2 Branch Regions 1 Pre-discovered Areas 1 | . . 1 Known Exits Taken . | . . . Unknown Exits Taken 2 | 1 1 . Scrap Searched 8 | . . 8 Spaces Dug . | . . . Terrain Destroyed 2 | . . 2 Melee . | . . . Projectile 2 | . . 2 AOE . | . . . Terrain Rammed . | . . . Walls Destroyed . | . . . Machines Disabled . | . . . Actions | -11 -10 -10 --------- Run | Yrd Mat Sub Total 1338 | 57 142 1139 Wait 34 | . . 34 Move 1159 | 41 132 986 Hop . | . . . Pick Up 8 | 3 3 2 Fast Attach 24 | 7 . 17 Attach 1 | 1 . . Detach . | . . . Swap 1 | . 1 . Drop 20 | 1 . 19 Fire 91 | 4 6 81 Melee . | . . . Ram . | . . . Kick . | . . . Crush . | . . . Escape Stasis . | . . . Rewire . | . . . Trap . | . . . Miscellaneous . | . . . Route ------- -11/Scrapyard -10/Materials (discovered 2 exits: [*Mat] / *Sub) -10/Subcaves (discovered 2 exits: [*Mat x2]) History --------- Turn | Location | Event 15 | -11/Scrapyard | Discovered new exit (range 16) 85 | -11/Scrapyard | Entered Materials 198 | -10/Materials | Discovered new exit (range 15) 313 | -10/Materials | Discovered new exit (range 4) 315 | -10/Materials | Build established: Mutant 319 | -10/Materials | Entered Subcaves 320 | -10/Subcaves | Approached by a straggling Scientist 425 | -10/Subcaves | A swath of the cavern ceiling suddenly collapsed 483 | -10/Subcaves | Discovered new exit (range 10) 499 | -10/Subcaves | Learned location of Zion (-7) 524 | -10/Subcaves | Found SUBCON Basin 799 | -10/Subcaves | Disturbed a concealed Subdweller 863 | -10/Subcaves | Visited 4L-MR0's lab 875 | -10/Subcaves | Found Power Bank 877 | -10/Subcaves | Attached Power Bank, gained temporary slots: Power x3 1264 | -10/Subcaves | Core integrity fell below 50% 1288 | -10/Subcaves | A swath of the cavern ceiling suddenly collapsed 1420 | -10/Subcaves | Shifting Twisted Machinery released Battle Cannon 1432 | -10/Subcaves | Shifting Twisted Machinery released Shrapnel Trap 1698 | -10/Subcaves | Discovered new exit (range 15) 1839 | -10/Subcaves | Build established: Scavenger-Mutant 1841 | -10/Subcaves | Core integrity fell below 20% 1883 | -10/Subcaves | Destroyed by AP-D4L(R) with Subdweller Laser Last Messages --------------- 01629_ Acquired Sub. Machine Gun. 01632_ Dropped Sub. Beam Cannon. 01633_ Acquired Sub. Machine Gun. 01649_ Sub. Power Source shoots sparks and powers down. 01663_ Dropped Broken Sub. Power Source. 01664_ Acquired Sub. Power Source. 01698_ EXIT=FOUND 01705_ Sub. Monowheel shoots sparks and powers down. 01706_ Dropped Broken Sub. Monowheel. 01723_ Acquired Sub. Monowheel. 01837_ Destroyed Scrap Shield. 01840_ BF-UR5(R) destroyed. 01843_ Acquired 9 matter. 01845_ Dropped Sub. Machine Gun. 01846_ Acquired Sub. Laser. 01870_ 4J-31E(R) destroyed. 01873_ 97-QBD(O) collects matter. 01881_ Lgt. Treads destroyed. Map ----- +----------------------------------------------------+ | ?????????????????????????????????????????????????? | | ?????????????????????????????????????????????????? | | ?????????????????????????????????????????????????? | | ?????????????????????????????????????????????????? | | ?????????????????????????????????????????????????? | | ?????????????????????????????????????????????????? | | ?????????????????????????????????????????????????? | | ?????????????????????????????????????????????????? | | ??????????????????????????????# ? ??????????????? | | ?????????????????????????????# #??????????????? | | ????????????????????????????? #??????????????? | | ????????????????????????????? #??????????????? | | ????????????????????????????? #??????????????? | | ????????????????????????????? ???????????????? | | ???????????????????????????## #???????????????? | | ???????????????????????????# ##??????????????? | | ???#???????????????????????# #??????????????? | | ??? ???????????????????????# #??????????????? | | ??? ?????#?????????????????# #??????????????? | | ???"?????"###??????????????# ##?????????????? | | ???" ????"" #?????########## ####??????????? | | ??? ???? ""#??#### ## #??????????? | | ??## ????# "?### # ###?????????????? | | ??? ????# "?#""" & ##???????????????? | | ???# ????# #?# *!R![## #????????????????? | | ???# ##### ### ## &@### #???????????????? | | ??## ## ## ######## #?? & ?????????????? | | ??#% #### #??????###?? & ! #????????????? | | ??## #??????????? ???????????? | | ???# ## ###?????????? ?????????? | | ???######## #?????????? ## #?????????? | | ??????????## ##?????????? ? "#?????????? | | ???????????### ###??"????? ??"" ###????????? | | ????????????## # """???? "?""##?????????? | | ???????????## [ """"??? #?????????????# | | ##?????????# # #""##??? #?????????????# | | ##????##??# ###"""#??? ###??????????? | | #???## ### #??# ###??""" ##?????#????? | | #???# ## ##??# "##? #????## ????? | | ##??# ### ###???# #?? ! ????## ????? | | #### ########???# ##? ##??## ?????? | | % ## ##????# #### #?# #??#"% ??????# | | ## #?????# ## ### ##??# ####??# | | ### ##????# ## #??# #### | | ###### ##?##### ###### ## | | #??## ### # ### ### | | #### ## ## = ## | | #?#& # # | | # ## ## | | % # " #### [ ### ### | +----------------------------------------------------+ Best States ------------- Heat Dissipation 25 Energy Generation 15 Energy Capacity 250 Matter Stores 300 Matter Capacity 300 Sight Range 16 Terrain Scan Density 10 Evasion (%) 50 Recoil Reduction 2 Item Schematics ----------------- None Robot Schematics ------------------ None Fabricated ------------ Nothing Repaired ---------- Nothing Studied --------- None Alien Tech Used ----------------- None Achievements -------------- Mistaken Identity Challenges ------------ None Game ------ Seed SubatomicKineticBeacon Manual? 0 Play Time 00:14:26 Cumulative 420.0 hours Start 2026.04.01 @ 14:58:45 End 2026.04.01 @ 15:12:28 Sessions 1 Manual Loads 0 Difficulty Rogue Special Mode None Game No. 424 Rogue 419 Adventurer 5 Explorer 0 Win Type - Total 9 Types 6/0/0/3/0/0/0/0/0/0 Lore% 82 Gallery% 74 Achievement% 44 Wizard Run 0 Options --------- Layout 1 ASCII 0 Keyboard 0 Movement Arrows Keybinds 0 Fullscreen 1 Font 24/Terminus Map View 50x35 Zoom Use 0% Tactical HUD 1 Map Filters NONE Filters NONE Steam 1 RUN: d812af36-5373-43e5-b204-e9b86420c917